[Event "Portugal Open 2020"]
[Site "Lisbon"]
[Date "2020.02.01"]
[Round "9.33"]
[White "Jaracz, Barbara"]
[Black "Heid, Michael"]
[Result "1/2-1/2"]
[ECO "B06"]
[WhiteElo "2200"]
[BlackElo "1953"]
[Annotator "NA"]
[PlyCount "64"]
[EventDate "2020.01.25"]
[EventType "swiss"]
[EventCountry "POR"]
[SourceTitle "playchess.com"]
[Source "ChessBase"]
[SourceQuality "1"]
[TimeControl "5400+30"]

1. e4 {[%emt 0:00:00]} g6 {[%emt 0:00:00]} 2. d4 {[%emt 0:00:00]} Bg7 {[%emt 0:00:00]} 3. Nc3 {[%emt 0:00:00]} d6 {[%emt 0:00:00]} 4. Be3 {[%emt 0:00:06]} a6 {[%emt 0:00:00]} 5. Qd2 {[%emt 0:00:11]} b5 {[%emt 0:00:28]} 6. h4 {[%emt 0:00:44]} Nf6 {[%emt 0:05:55]} 7. f3 {[%emt 0:03:36]} Nbd7 {[%emt 0:02:28]} 8. O-O-O {[%emt 0:03:01]} b4 {[%emt 0:06:03]} 9. Nce2 {[%emt 0:01:48]} a5 {[%emt 0:01:23]} 10. Bh6 {[%emt 0:01:50]} Bxh6 {[%emt 0:08:46]} 11. Qxh6 {[%emt 0:00:04]} a4 {[%emt 0:00:14]} 12. Nh3 {[%emt 0:03:08]} Ra5 {[%emt 0:06:42]} 13. Ng5 {[%emt 0:11:40]} Ba6 $14 {[%emt 0:01:35]} 14. Nf4 {[%emt 0:06:27]} Bxf1 {[%emt 0:01:27]} 15. Rhxf1 {[%emt 0:00:05]} b3 {[%emt 0:20:15]} 16. a3 {[%emt 0:02:19]} bxc2 {[%emt 0:00:36]} 17. Rd2 {[%emt 0:00:57]} Qb8 {[%emt 0:03:37]} 18. Rxc2 {[%emt 0:03:14]} c5 {[%emt 0:00:39]} 19. h5 {[%emt 0:12:33]} gxh5 {[%emt 0:12:28]} 20. Nxh5 {[%emt 0:02:57]} Nxh5 {[%emt 0:06:58]} 21. Qxh5 {[%emt 0:00:09]} Qb3 {[%emt 0:00:20]} 22. d5 {[%emt 0:15:08]} Rf8 {[%emt 0:01:07]} 23. Kb1 {[%emt 0:14:17]} Nf6 24. Qh3 {[%emt 0:01:30]} Ra8 {[%emt 0:04:52]} 25. Nxh7 {[%emt 0:02:46]} Nxh7 {[%emt 0:00:05]} 26. Qxh7 {[%emt 0:00:04]} Rb8 {[%emt 0:00:03]} 27. f4 {[%emt 0:03:49]} Qxa3 {[%emt 0:08:22]} 28. e5 {[%emt 0:00:11]} c4 {[%emt 0:00:14]} 29. Qf5 {[%emt 0:05:59]} Qd3 {[%emt 0:05:33]} 30. Qxd3 {[%emt 0:01:41]} cxd3 {[%emt 0:00:01]} 31. Rc3 {[%emt 0:00:46]} Rg8 {[%emt 0:00:04]} 32. Rf2 {[%emt 0:01:06]} Rg3 {[%emt 0:00:09]} 1/2-1/2

[Event "Portugal Open 2020"]
[Site "Lisbon"]
[Date "2020.02.01"]
[Round "9.34"]
[White "Cordeiro, Joao Carlos Santos F"]
[Black "Palozza, Christian"]
[Result "0-1"]
[ECO "B15"]
[WhiteElo "2005"]
[BlackElo "2198"]
[Annotator "ChessBase"]
[PlyCount "138"]
[EventDate "2020.01.25"]
[EventType "swiss"]
[EventCountry "POR"]
[SourceTitle "playchess.com"]
[Source "ChessBase"]
[SourceQuality "1"]
[TimeControl "5400+30"]

1. e4 {[%emt 0:03:18]} c6 {[%emt 0:00:00]} 2. d4 {[%emt 0:00:11]} d5 {[%emt 0:00:00]} 3. Nc3 {[%emt 0:00:10]} dxe4 {[%emt 0:00:00]} 4. Nxe4 {[%emt 0:00:05]} Nf6 {[%emt 0:00:00]} 5. Nxf6+ {[%emt 0:00:44]} exf6 {[%emt 0:00:14]} 6. c3 {[%emt 0:02:15]} Bd6 {[%emt 0:00:06]} 7. Bd3 {[%emt 0:01:13]} O-O {[%emt 0:00:09]} 8. Be3 {[%emt 0:03:38]} Re8 {[%emt 0:00:51]} 9. Ne2 {[%emt 0:01:31]} Nd7 {[%emt 0:06:35]} 10. Qc2 {[%emt 0:01:11]} Nf8 {[%emt 0:00:20]} 11. O-O-O {[%emt 0:01:06]} Be6 {[%emt 0:00:54]} 12. Kb1 {[%emt 0:03:54]} Qa5 {[%emt 0:02:39]} 13. c4 {[%emt 0:06:09]} Rac8 {[%emt 0:09:44]} 14. b3 {[%emt 0:12:08]} b5 {[%emt 0:08:29]} 15. c5 {[%emt 0:04:30]} Bb8 {[%emt 0:00:57]} 16. Nf4 {[%emt 0:02:13]} Bg4 {[%emt 0:08:45]} 17. Rdg1 {[%emt 0:11:08]} Bxf4 {[%emt 0:20:29]} 18. Bxf4 {[%emt 0:01:16]} Be6 {[%emt 0:00:02]} 19. Be3 {[%emt 0:06:57]} Qc7 {[%emt 0:02:56]} 20. h4 {[%emt 0:03:23]} h5 {[%emt 0:02:34]} 21. Bf5 {[%emt 0:04:47]} Qd7 {[%emt 0:02:03]} 22. Bxe6 {[%emt 0:07:20]} Qxe6 {[%emt 0:00:02]} 23. Qe2 {[%emt 0:02:03]} Qe4+ {[%emt 0:01:20]} 24. Qc2 {[%emt 0:00:39]} Qd5 {[%emt 0:01:08]} 25. Qd1 {[%emt 0:02:22]} Re4 {[%emt 0:02:41]} 26. Qd2 {[%emt 0:06:03]} Rce8 {[%emt 0:02:14]} 27. Re1 {[%emt 0:01:24]} f5 {[%emt 0:03:40]} 28. f3 {[%emt 0:01:39]} R4e6 {[%emt 0:02:06]} 29. Bf2 {[%emt 0:00:27]} Nd7 {[%emt 0:11:43]} 30. Kc2 {[%emt 0:01:42]} Nf8 {[%emt 0:01:32]} 31. Rxe6 {[%emt 0:02:12]} Nxe6 {[%emt 0:00:41]} 32. Re1 {[%emt 0:04:36]} f6 {[%emt 0:00:01]} 33. Rd1 {[%emt 0:01:03]} Rd8 {[%emt 0:00:20]} 34. a3 {[%emt 0:00:41]} a5 {[%emt 0:01:26]} 35. Qc3 {[%emt 0:02:23]} Kf7 {[%emt 0:01:55]} 36. Rd2 {[%emt 0:00:35]} Ra8 {[%emt 0:00:46]} 37. Bg3 {[%emt 0:00:35]} a4 {[%emt 0:01:29]} 38. b4 {[%emt 0:00:19]} f4 {[%emt 0:01:14]} 39. Bf2 {[%emt 0:00:02]} Rd8 {[%emt 0:00:03]} 40. Kb2 {[%emt 0:00:50]} Qf5 {[%emt 0:00:43]} 41. Qc2 {[%emt 0:00:44]} Kg6 {[%emt 0:00:45]} 42. Qxf5+ {[%emt 0:00:10]} Kxf5 {[%emt 0:00:01]} 43. Kc3 {[%emt 0:00:13]} Rd5 {[%emt 0:00:30]} 44. Rd1 {[%emt 0:00:34]} Rd7 {[%emt 0:01:58]} 45. Rh1 {[%emt 0:00:20]} Nc7 {[%emt 0:00:31]} 46. Re1 {[%emt 0:00:24]} Re7 {[%emt 0:00:19]} 47. Rxe7 {[%emt 0:00:25]} Nd5+ {[%emt 0:00:01]} 48. Kd3 {[%emt 0:00:09]} Nxe7 {[%emt 0:00:01]} 49. Be1 {[%emt 0:00:26]} Nd5 {[%emt 0:00:01]} 50. Bf2 {[%emt 0:00:29]} g5 {[%emt 0:00:12]} 51. Be1 {[%emt 0:01:51]} Ne3 {[%emt 0:01:15]} 52. g3 {[%emt 0:00:35]} Nd5 {[%emt 0:00:38]} 53. hxg5 {[%emt 0:00:53]} fxg5 {[%emt 0:01:00]} 54. Bf2 {[%emt 0:00:28]} fxg3 {[%emt 0:02:16]} 55. Bxg3 {[%emt 0:00:05]} h4 {[%emt 0:00:11]} 56. Bh2 {[%emt 0:00:15]} g4 {[%emt 0:02:18]} 57. fxg4+ {[%emt 0:00:07]} Kxg4 {[%emt 0:00:00]} 58. Ke4 {[%emt 0:00:30]} h3 {[%emt 0:02:46]} 59. Ke5 {[%emt 0:00:27]} Nxb4 {[%emt 0:00:31]} 60. Kd6 {[%emt 0:01:27]} Nc2 {[%emt 0:00:52]} 61. d5 {[%emt 0:00:30]} b4 {[%emt 0:00:57]} 62. dxc6 {[%emt 0:00:23]} Nd4 {[%emt 0:00:01]} 63. Kd5 {[%emt 0:00:48]} Nxc6 {[%emt 0:00:41]} 64. Kxc6 {[%emt 0:00:23]} bxa3 {[%emt 0:00:18]} 65. Kd7 {[%emt 0:00:33]} a2 {[%emt 0:00:03]} 66. Be5 {[%emt 0:00:01]} h2 {[%emt 0:00:04]} 67. c6 {[%emt 0:01:04]} h1=Q {[%emt 0:00:06]} 68. c7 {[%emt 0:00:15]} Qd5+ {[%emt 0:00:12]} 69. Bd6 {[%emt 0:00:09]} a1=Q 0-1

[Event "Portugal Open 2020"]
[Site "Lisbon"]
[Date "2020.02.01"]
[Round "9.35"]
[White "Morais, Vitor"]
[Black "Krzywda, Andrzej"]
[Result "0-1"]
[ECO "A13"]
[WhiteElo "1864"]
[BlackElo "2178"]
[Annotator "NA"]
[PlyCount "98"]
[EventDate "2020.01.25"]
[EventType "swiss"]
[EventCountry "POR"]
[SourceTitle "playchess.com"]
[Source "ChessBase"]
[SourceQuality "1"]
[TimeControl "5400+30"]

1. c4 {[%emt 0:00:00]} e6 {[%emt 0:01:23]} 2. Nc3 {[%emt 0:00:00]} d5 {[%emt 0:00:24]} 3. e3 {[%emt 0:00:00]} Nf6 {[%emt 0:00:34]} 4. Nf3 {[%emt 0:00:00]} Be7 {[%emt 0:02:19]} 5. d4 {[%emt 0:00:02]} O-O {[%emt 0:00:15]} 6. Bd3 {[%emt 0:00:08]} b6 {[%emt 0:04:12]} 7. cxd5 {[%emt 0:00:07]} exd5 {[%emt 0:02:52]} 8. O-O {[%emt 0:00:08]} Ba6 {[%emt 0:01:27]} 9. Ne5 {[%emt 0:00:35]} c5 {[%emt 0:11:53]} 10. b3 {[%emt 0:00:09]} Qc7 {[%emt 0:03:39]} 11. Bb2 {[%emt 0:00:12]} Bxd3 {[%emt 0:01:28]} 12. Qxd3 {[%emt 0:00:09]} Nbd7 {[%emt 0:06:08]} 13. f4 {[%emt 0:00:35]} Rad8 {[%emt 0:03:37]} (13... Qb7 $11) 14. Rac1 $11 {[%emt 0:00:20]} (14. Nb5 $5 {[%cal Rb5c7]} Qb7 15. Nxa7 $14) 14... Qb7 {[%emt 0:02:00]} 15. Rc2 {[%emt 0:01:56]} Ne4 {[%emt 0:03:07]} 16. g4 {[%emt 0:01:09]} f6 {[%emt 0:03:18]} 17. Nxd7 {[%emt 0:00:17]} Qxd7 {[%emt 0:05:50]} 18. Nxe4 {[%emt 0:00:22]} dxe4 {[%emt 0:00:06]} 19. Qxe4 {[%emt 0:00:11]} Qxg4+ {[%emt 0:03:50]} 20. Rg2 {[%emt 0:01:39]} Qd7 {[%emt 0:00:13]} 21. Kh1 {[%emt 0:00:09]} Rfe8 {[%emt 0:10:51]} 22. Rfg1 {[%emt 0:00:19]} Bf8 {[%emt 0:02:21]} 23. Qf3 {[%emt 0:00:23]} Qf5 {[%emt 0:04:26]} 24. dxc5 {[%emt 0:00:23]} bxc5 {[%emt 0:03:10]} 25. e4 {[%emt 0:01:20]} Rxe4 {[%emt 0:04:18]} 26. Bxf6 {[%emt 0:00:09]} Rxf4 {[%emt 0:07:10]} 27. Qxf4 {[%emt 0:00:10]} Qxf4 {[%emt 0:00:09]} 28. Bxd8 {[%emt 0:00:11]} Qf3 {[%emt 0:01:20]} 29. Bc7 {[%emt 0:01:15]} h6 {[%emt 0:00:21]} 30. Bg3 {[%emt 0:00:08]} Be7 {[%emt 0:02:59]} 31. h3 {[%emt 0:00:08]} Bf6 {[%emt 0:00:21]} 32. Kh2 {[%emt 0:00:12]} Bd4 {[%emt 0:01:08]} 33. Re1 {[%emt 0:00:10]} a5 {[%emt 0:01:55]} 34. Rge2 {[%emt 0:00:34]} Kh7 {[%emt 0:01:50]} 35. Rc2 {[%emt 0:01:34]} h5 {[%emt 0:02:00]} 36. h4 {[%emt 0:01:35]} Be3 {[%emt 0:00:44]} 37. Rce2 {[%emt 0:00:44]} Bf4 {[%emt 0:00:37]} 38. Bxf4 {[%emt 0:01:58]} Qxf4+ {[%emt 0:00:01]} 39. Kg2 {[%emt 0:00:10]} Qg4+ {[%emt 0:00:09]} 40. Kf2 {[%emt 0:00:08]} Qxh4+ {[%emt 0:00:29]} 41. Ke3 {[%emt 0:00:13]} Qd4+ {[%emt 0:00:01]} 42. Kf3 {[%emt 0:00:18]} g6 {[%emt 0:01:05]} 43. Re7+ {[%emt 0:00:33]} Kh6 {[%emt 0:00:10]} 44. R1e4 {[%emt 0:00:29]} Qd3+ {[%emt 0:00:22]} 45. Kf4 {[%emt 0:00:55]} h4 {[%emt 0:01:10]} 46. Ke5 {[%emt 0:00:12]} g5 {[%emt 0:01:59]} 47. Re6+ {[%emt 0:00:30]} Kh5 {[%emt 0:00:20]} 48. Rc4 {[%emt 0:00:31]} h3 {[%emt 0:00:38]} 49. Re8 {[%emt 0:00:20]} h2 {[%emt 0:01:28] Kd4} 0-1

[Event "Portugal Open 2020"]
[Site "Lisbon"]
[Date "2020.02.01"]
[Round "9.37"]
[White "Silich, Yahor"]
[Black "Twardowski, Hubert"]
[Result "1/2-1/2"]
[ECO "B19"]
[WhiteElo "2158"]
[BlackElo "1875"]
[Annotator "NA"]
[PlyCount "108"]
[EventDate "2020.01.25"]
[EventType "swiss"]
[EventCountry "POR"]
[SourceTitle "playchess.com"]
[Source "ChessBase"]
[SourceQuality "1"]
[TimeControl "5400+30"]

1. e4 c6 2. d4 {[%emt 0:00:35]} d5 {[%emt 0:00:30]} 3. Nd2 {[%emt 0:00:04]} dxe4 {[%emt 0:00:11]} 4. Nxe4 {[%emt 0:00:06]} Bf5 {[%emt 0:00:08]} 5. Ng3 {[%emt 0:00:33]} Bg6 {[%emt 0:00:42]} 6. h4 {[%emt 0:00:58]} h6 {[%emt 0:02:32]} 7. Nf3 {[%emt 0:00:10]} Nd7 {[%emt 0:00:07]} 8. h5 {[%emt 0:00:05]} Bh7 {[%emt 0:00:04]} 9. Bd3 {[%emt 0:00:04]} Bxd3 {[%emt 0:00:05]} 10. Qxd3 {[%emt 0:00:03]} e6 11. Bd2 {[%emt 0:03:45]} Qc7 {[%emt 0:00:46]} 12. O-O-O {[%emt 0:00:30]} O-O-O {[%emt 0:02:32]} 13. Kb1 {[%emt 0:02:06]} Ngf6 14. Ne4 Nxe4 {[%emt 0:00:40]} 15. Qxe4 {[%emt 0:02:21]} Nf6 16. Qe2 {[%emt 0:00:04]} Bd6 {[%emt 0:00:40]} 17. c4 {[%emt 0:00:39]} c5 18. Bc3 {[%emt 0:06:36]} Rhe8 {[%emt 0:11:50]} 19. Ne5 {[%emt 0:00:30]} Bxe5 {[%emt 0:29:45]} 20. dxe5 {[%emt 0:00:14]} Nd7 {[%emt 0:00:42]} 21. Qe4 f5 {[%emt 0:15:35]} 22. exf6 {[%emt 0:05:04]} Nxf6 {[%emt 0:01:16]} 23. Qe2 {[%emt 0:00:39]} Rxd1+ {[%emt 0:01:51]} 24. Rxd1 {[%emt 0:00:23]} Qf4 {[%emt 0:02:27]} 25. Qd3 {[%emt 0:12:39]} Qf5 {[%emt 0:15:38]} 26. Bxf6 gxf6 27. g4 {[%emt 0:01:54]} Qxd3+ {[%emt 0:01:07]} 28. Rxd3 {[%emt 0:00:01]} Rg8 {[%emt 0:12:19]} 29. Rf3 {[%emt 0:08:50]} Rxg4 {[%emt 0:00:21]} 30. Rxf6 {[%emt 0:00:07]} Rxc4 31. Rxe6 {[%emt 0:03:47]} Rf4 {[%emt 0:00:46]} 32. Rxh6 {[%emt 0:00:00]} Rxf2 33. Rg6 {[%emt 0:00:00]} Rh2 {[%emt 0:00:22]} 34. h6 {[%emt 0:00:21]} Kc7 {[%emt 0:00:37]} 35. a4 b6 36. Rg7+ {[%emt 0:01:42]} Kc6 {[%emt 0:00:52]} 37. h7 {[%emt 0:00:05]} a6 {[%emt 0:02:18]} 38. Ra7 {[%emt 0:01:05]} a5 {[%emt 0:01:06]} 39. b3 {[%emt 0:02:26]} Kd6 {[%emt 0:00:13]} 40. Rb7 {[%emt 0:00:49]} Kc6 {[%emt 0:00:06]} 41. Rg7 {[%emt 0:00:03]} Kd6 {[%emt 0:00:18]} 42. Kc1 {[%emt 0:00:05]} Kd5 {[%emt 0:01:17]} 43. Kd1 {[%emt 0:01:50]} Kd4 {[%emt 0:00:37]} 44. Rb7 {[%emt 0:00:07]} Kd3 {[%emt 0:00:17]} 45. Ke1 {[%emt 0:00:17]} Kc3 {[%emt 0:00:40]} 46. Rxb6 {[%emt 0:01:13]} Rxh7 {[%emt 0:00:06]} 47. Rb5 {[%emt 0:00:02]} c4 {[%emt 0:00:56]} 48. bxc4 {[%emt 0:00:16]} Kxc4 {[%emt 0:00:09]} 49. Rxa5 {[%emt 0:00:05]} Kb4 {[%emt 0:00:10]} 50. Ra8 {[%emt 0:00:04]} Rh2 {[%emt 0:00:38]} 51. a5 {[%emt 0:00:16]} Kb5 {[%emt 0:00:09]} 52. Kd1 {[%emt 0:01:09]} Rh6 {[%emt 0:00:12]} 53. a6 {[%emt 0:01:02]} Rxa6 {[%emt 0:00:06]} 54. Rxa6 {[%emt 0:00:02]} Kxa6 1/2-1/2

[Event "Portugal Open 2020"]
[Site "Lisbon"]
[Date "2020.02.01"]
[Round "9.38"]
[White "Garcia Dorado, Alberto"]
[Black "Pfeiffer, Noah"]
[Result "1-0"]
[ECO "E67"]
[WhiteElo "2152"]
[BlackElo "1825"]
[Annotator "NA"]
[PlyCount "67"]
[EventDate "2020.01.25"]
[EventType "swiss"]
[EventCountry "POR"]
[SourceTitle "playchess.com"]
[Source "ChessBase"]
[SourceQuality "1"]
[TimeControl "5400+30"]

1. Nf3 {[%emt 0:00:00]} g6 {[%emt 0:00:00]} 2. c4 {[%emt 0:00:21]} Bg7 {[%emt 0:00:00]} 3. d4 {[%emt 0:00:39]} Nf6 {[%emt 0:00:00]} 4. g3 {[%emt 0:00:24]} O-O {[%emt 0:00:07]} 5. Bg2 {[%emt 0:00:02]} d6 {[%emt 0:00:07]} 6. Nc3 {[%emt 0:00:20]} Nbd7 {[%emt 0:00:11]} 7. O-O {[%emt 0:00:15]} c6 {[%emt 0:00:05]} 8. h3 {[%emt 0:00:14]} Qc7 {[%emt 0:00:11]} 9. e4 {[%emt 0:00:12]} e5 {[%emt 0:00:11]} 10. Be3 {[%emt 0:00:09]} exd4 {[%emt 0:00:12]} 11. Nxd4 {[%emt 0:00:03]} Re8 {[%emt 0:00:11]} 12. Qc2 {[%emt 0:00:09]} Nc5 {[%emt 0:00:24]} 13. Rfe1 {[%emt 0:01:27]} a5 {[%emt 0:01:37]} 14. Rad1 {[%emt 0:00:23]} Nfd7 {[%emt 0:05:28]} 15. f4 {[%emt 0:02:57]} Nb6 {[%emt 0:03:12]} 16. Ndb5 {[%emt 0:01:15]} cxb5 {[%emt 0:19:20]} 17. Nxb5 {[%emt 0:00:46]} Qe7 {[%emt 0:34:32]} 18. Nxd6 {[%emt 0:01:10]} Nbd7 {[%emt 0:06:41]} 19. Nxe8 {[%emt 0:09:59]} Qxe8 {[%emt 0:00:13]} 20. e5 {[%emt 0:02:41]} Ra6 {[%emt 0:03:38]} 21. Qf2 {[%emt 0:05:22]} Bf8 {[%emt 0:01:28]} 22. Bd5 {[%emt 0:01:21]} Ne6 {[%emt 0:02:27]} 23. g4 {[%emt 0:02:26]} Ng7 {[%emt 0:00:58]} 24. Bd4 {[%emt 0:06:49]} Bb4 {[%emt 0:01:05]} 25. Rf1 {[%emt 0:02:53]} a4 {[%emt 0:02:51]} 26. Rd3 {[%emt 0:04:01]} Ne6 {[%emt 0:01:31]} 27. Be3 {[%emt 0:00:12]} Ndc5 {[%emt 0:01:26]} 28. Rdd1 {[%emt 0:02:13]} Nd7 {[%emt 0:02:01]} 29. a3 {[%emt 0:05:52]} Ba5 {[%emt 0:00:56]} 30. f5 {[%emt 0:04:45]} Nd8 {[%emt 0:01:41]} 31. Bd4 {[%emt 0:06:58]} Nf8 {[%emt 0:05:31]} 32. e6 {[%emt 0:02:21]} fxe6 {[%emt 0:00:43]} 33. fxe6 {[%emt 0:00:08]} Rxe6 {[%emt 0:02:59]} 34. Qf6 {[%emt 0:00:36]} 1-0

[Event "Portugal Open 2020"]
[Site "Lisbon"]
[Date "2020.02.01"]
[Round "9.39"]
[White "Jorge, Rita Maria Osorio"]
[Black "Borges, Guilherme Deola"]
[Result "1-0"]
[ECO "B40"]
[WhiteElo "1932"]
[BlackElo "2134"]
[Annotator "NA"]
[PlyCount "76"]
[EventDate "2020.01.25"]
[EventType "swiss"]
[EventCountry "POR"]
[SourceTitle "playchess.com"]
[Source "ChessBase"]
[SourceQuality "1"]
[TimeControl "5400+30"]

1. e4 {[%emt 0:00:00]} c5 {[%emt 0:00:00]} 2. Nf3 {[%emt 0:00:00]} e6 {[%emt 0:00:00]} 3. d3 {[%emt 0:00:00]} Nc6 {[%emt 0:00:15]} 4. g3 {[%emt 0:00:00]} Nge7 {[%emt 0:00:21]} 5. Bg2 {[%emt 0:00:30]} g6 {[%emt 0:00:19]} 6. c3 {[%emt 0:00:55]} Bg7 {[%emt 0:00:33]} 7. h4 {[%emt 0:01:12]} h6 {[%emt 0:00:52]} 8. Be3 {[%emt 0:00:21]} b6 {[%emt 0:02:06]} 9. d4 {[%emt 0:04:54]} cxd4 {[%emt 0:17:21]} 10. Nxd4 {[%emt 0:05:20]} O-O {[%emt 0:05:21]} 11. O-O $11 {[%emt 0:02:03]} Bb7 {[%emt 0:02:44]} 12. Nxc6 {[%emt 0:12:17]} Bxc6 {[%emt 0:13:43]} 13. Qd6 {[%emt 0:11:11]} f5 {[%emt 0:00:13]} 14. Nd2 {[%emt 0:12:48]} fxe4 {[%emt 0:01:35]} 15. Nxe4 {[%emt 0:00:52]} Nf5 {[%emt 0:00:11]} 16. Qd3 {[%emt 0:01:57]} d5 {[%emt 0:02:00]} 17. Nd2 {[%emt 0:01:34]} Qf6 {[%emt 0:09:40]} 18. Nb3 {[%emt 0:09:08]} Rad8 {[%emt 0:08:55]} 19. Nd4 {[%emt 0:02:28]} Bb7 {[%emt 0:00:51]} 20. Nxf5 {[%emt 0:06:13]} gxf5 {[%emt 0:00:24]} 21. f4 {[%emt 0:06:54]} Qg6 {[%emt 0:00:33]} 22. Kh2 {[%emt 0:00:25]} Kh7 {[%emt 0:03:54]} 23. Bd4 {[%emt 0:03:57]} Rg8 {[%emt 0:00:38]} 24. Rf3 {[%emt 0:01:28]} Bf8 {[%emt 0:01:35]} 25. Re3 {[%emt 0:03:19]} Bd6 {[%emt 0:00:31]} 26. Qd2 {[%emt 0:03:00]} Rde8 {[%emt 0:06:16]} 27. Qf2 {[%emt 0:01:32]} Ba6 {[%emt 0:01:26]} 28. Bf1 {[%emt 0:04:08]} Bb7 {[%emt 0:09:47]} 29. a4 {[%emt 0:01:47]} Bc7 {[%emt 0:01:53]} 30. Bb5 {[%emt 0:00:45]} Re7 {[%emt 0:01:40]} 31. Rae1 {[%emt 0:01:15]} Bb8 {[%emt 0:03:33]} 32. Bd3 {[%emt 0:01:38]} Bc6 {[%emt 0:00:39]} 33. Qc2 {[%emt 0:01:29]} Ree8 {[%emt 0:01:16]} 34. b3 {[%emt 0:00:37]} Qg4 {[%emt 0:01:59]} 35. Qf2 {[%emt 0:00:17]} Qg6 {[%emt 0:00:54]} 36. Be5 {[%emt 0:00:58]} Bxe5 {[%emt 0:01:02]} 37. Rxe5 {[%emt 0:00:01]} Rg7 {[%emt 0:02:28]} 38. Rg1 {[%emt 0:00:27]} Qf6 1-0

[Event "Portugal Open 2020"]
[Site "Lisbon"]
[Date "2020.02.01"]
[Round "9.40"]
[White "Quintino, Luis Filipe Pires De"]
[Black "Tuerk, Philipp"]
[Result "1-0"]
[ECO "A40"]
[WhiteElo "1839"]
[BlackElo "2106"]
[Annotator "NA"]
[PlyCount "89"]
[EventDate "2020.01.25"]
[EventType "swiss"]
[EventCountry "POR"]
[SourceTitle "playchess.com"]
[Source "ChessBase"]
[SourceQuality "1"]
[TimeControl "5400+30"]

1. d4 {[%emt 0:33:08]} e6 {[%emt 0:00:15]} 2. c4 {[%emt 0:00:22]} c5 {[%emt 0:00:21]} 3. Nf3 {[%emt 0:00:55]} Nf6 {[%emt 0:00:49]} 4. Nc3 {[%emt 0:00:59]} cxd4 {[%emt 0:00:28]} 5. Nxd4 {[%emt 0:00:16]} Bb4 {[%emt 0:06:04]} 6. Bd2 {[%emt 0:00:45]} Nc6 {[%emt 0:01:30]} 7. Nxc6 {[%emt 0:04:55]} dxc6 {[%emt 0:02:00]} 8. a3 {[%emt 0:00:56]} Be7 {[%emt 0:00:44]} 9. e3 {[%emt 0:00:55]} e5 {[%emt 0:03:37]} 10. Qc2 {[%emt 0:00:37]} Bg4 {[%emt 0:06:02]} 11. Be2 {[%emt 0:00:42]} Qd7 {[%emt 0:00:40]} 12. h3 {[%emt 0:08:57]} Bf5 {[%emt 0:00:11]} 13. e4 {[%emt 0:00:14]} Bg6 {[%emt 0:01:23]} 14. Be3 {[%emt 0:00:07]} O-O {[%emt 0:00:46]} 15. Rd1 $11 {[%emt 0:00:25]} Qe6 {[%emt 0:04:44]} 16. O-O {[%emt 0:02:52]} a5 {[%emt 0:03:33]} 17. f3 {[%emt 0:06:36]} Nh5 {[%emt 0:04:09]} 18. Na4 {[%emt 0:02:58]} Nf4 {[%emt 0:02:12]} 19. Kh2 {[%emt 0:00:49]} Bh4 {[%emt 0:02:18]} 20. Bxf4 {[%emt 0:06:39]} exf4 21. Nc5 {[%emt 0:02:10]} Qe7 {[%emt 0:01:39]} 22. Nd7 {[%emt 0:01:25]} Rfd8 {[%emt 0:01:50]} 23. Nb6 {[%emt 0:00:08]} Rab8 {[%emt 0:02:26]} 24. Rxd8+ {[%emt 0:02:18]} Rxd8 {[%emt 0:00:06]} 25. c5 {[%emt 0:05:05]} Rd4 {[%emt 0:04:17]} 26. Rd1 {[%emt 0:01:39]} Bf2 {[%emt 0:01:35]} 27. Rxd4 {[%emt 0:00:43]} Bxd4 {[%emt 0:00:06]} 28. b4 {[%emt 0:00:32]} Qh4 {[%emt 0:00:46]} 29. Qd1 {[%emt 0:01:05]} Qf2 {[%emt 0:00:48]} 30. Bc4 {[%emt 0:00:38]} h5 {[%emt 0:01:07]} 31. Qf1 {[%emt 0:02:04]} Qb2 {[%emt 0:02:19]} 32. Qd1 {[%emt 0:01:12]} Kh7 {[%emt 0:02:35]} 33. Nd7 {[%emt 0:02:20]} Kg8 {[%emt 0:02:37]} 34. Nb6 {[%emt 0:00:07]} Qc3 {[%emt 0:00:32]} 35. Bf1 {[%emt 0:02:24]} axb4 {[%emt 0:00:20]} 36. axb4 {[%emt 0:00:19]} Qxb4 {[%emt 0:00:07]} 37. Qa4 {[%emt 0:05:39]} Bxc5 {[%emt 0:02:28]} 38. Qa8+ {[%emt 0:00:35]} Kh7 {[%emt 0:00:12]} 39. Nd7 {[%emt 0:00:08]} Bd6 {[%emt 0:01:40]} 40. e5 {[%emt 0:01:20]} Be7 {[%emt 0:00:08]} 41. Qe8 {[%emt 0:00:39]} Bf5 {[%emt 0:01:45]} 42. Qxf7 {[%emt 0:00:30]} Bg6 {[%emt 0:01:03]} 43. Bd3 {[%emt 0:00:23]} Bxd3 {[%emt 0:00:17]} 44. Nf6+ {[%emt 0:00:55]} Bxf6 {[%emt 0:00:34]} 45. exf6 {[%emt 0:00:03]} 1-0

[Event "Portugal Open 2020"]
[Site "Lisbon"]
[Date "2020.02.01"]
[Round "9.41"]
[White "Fernandes, Ricardo Paulos"]
[Black "Fanha, Paulo"]
[Result "1-0"]
[ECO "A06"]
[WhiteElo "2100"]
[BlackElo "1766"]
[Annotator "NA"]
[PlyCount "83"]
[EventDate "2020.01.25"]
[EventType "swiss"]
[EventCountry "POR"]
[SourceTitle "playchess.com"]
[Source "ChessBase"]
[SourceQuality "1"]
[TimeControl "5400+30"]

1. Nf3 {[%emt 0:08:51]} d5 {[%emt 0:00:00]} 2. g3 {[%emt 0:00:05]} e6 {[%emt 0:00:00]} 3. Bg2 {[%emt 0:00:04]} f5 {[%emt 0:00:00]} 4. d3 {[%emt 0:00:15]} c6 {[%emt 0:00:00]} 5. O-O {[%emt 0:00:27]} Nf6 {[%emt 0:00:02]} 6. Nbd2 {[%emt 0:01:28]} Bd6 {[%emt 0:00:38]} 7. Re1 {[%emt 0:06:37]} O-O {[%emt 0:00:56]} 8. c4 {[%emt 0:04:12]} e5 {[%emt 0:05:56]} 9. e4 {[%emt 0:07:02]} fxe4 {[%emt 0:00:43]} 10. dxe4 {[%emt 0:00:09]} d4 {[%emt 0:01:00]} 11. Rf1 {[%emt 0:10:08]} Qe8 {[%emt 0:05:49]} 12. Ne1 {[%emt 0:01:35]} c5 {[%emt 0:00:58]} 13. Nd3 {[%emt 0:00:07]} Nc6 {[%emt 0:00:22]} 14. a3 {[%emt 0:00:17]} Bg4 {[%emt 0:02:07]} 15. f3 {[%emt 0:02:06]} Be6 {[%emt 0:00:23]} 16. b3 {[%emt 0:14:57]} Qd7 $11 {[%emt 0:02:20]} (16... Qh5 $17) 17. f4 {[%emt 0:01:47]} Bh3 {[%emt 0:00:59]} 18. f5 {[%emt 0:00:29]} Bxg2 {[%emt 0:00:13]} 19. Kxg2 {[%emt 0:00:04]} b6 {[%emt 0:03:22]} 20. Qe2 {[%emt 0:02:21]} Kf7 {[%emt 0:03:57]} 21. g4 {[%emt 0:05:10]} h6 {[%emt 0:00:32]} 22. Nf3 {[%emt 0:06:55]} Nxg4 {[%emt 0:03:56]} 23. Ng5+ {[%emt 0:00:03]} hxg5 {[%emt 0:00:25]} 24. Qxg4 {[%emt 0:00:02]} Be7 {[%emt 0:02:49]} 25. Qh5+ {[%emt 0:01:12]} Kg8 {[%emt 0:00:13]} 26. Rf3 {[%emt 0:01:58]} Qe8 {[%emt 0:00:22]} 27. Qg4 {[%emt 0:01:31]} a5 {[%emt 0:02:19]} 28. Rg3 {[%emt 0:05:35]} Qf7 {[%emt 0:08:22]} 29. a4 {[%emt 0:09:25]} Rad8 {[%emt 0:07:17]} 30. Bxg5 {[%emt 0:02:37]} Bxg5 {[%emt 0:01:08]} 31. Qxg5 {[%emt 0:00:25]} Rd6 {[%emt 0:01:33]} 32. Rg1 {[%emt 0:00:24]} Qf6 {[%emt 0:01:34]} 33. Kf3 {[%emt 0:03:31]} Qxg5 {[%emt 0:01:12]} 34. Rxg5 {[%emt 0:00:05]} Rf7 {[%emt 0:00:30]} 35. h4 {[%emt 0:00:36]} Kf8 {[%emt 0:00:21]} 36. h5 {[%emt 0:00:09]} Rh6 {[%emt 0:02:58]} 37. Kg4 {[%emt 0:03:54]} Rd6 {[%emt 0:01:30]} 38. Kh4 {[%emt 0:00:11]} Rdf6 {[%emt 0:01:31]} 39. Rg6 {[%emt 0:01:04]} Re7 {[%emt 0:15:55]} 40. h6 {[%emt 0:00:29]} Rxg6 {[%emt 0:01:28]} 41. Rxg6 {[%emt 0:00:05]} gxh6 {[%emt 0:01:07]} 42. Rxc6 {[%emt 0:00:05]} 1-0